Cogmind - Beta 16.1 @@@ ROGUE MODE // 2026.04.07 @ 21:57:07 Player: Ace Result: Destroyed by D0-CN2(R) with Subdweller Machine Gun Performance ------------- Evolutions (0) 0 Regions Visited (2) 400 Robots Destroyed (21) 105 Value Destroyed (622) 622 Prototype IDs (0) 0 Alien Tech Used (0) 0 Bonus (0) 0 TOTAL SCORE: 1127 Bonus ------- None Cogmind --------- Core Integrity 0/250 Matter 277/300 Energy 125/125 System Corruption 0% Temperature Cool (0) Movement Rolling (90) Location -10/Subcaves Parts ------- > --- POWER (1) -------- Light Ion Engine > --- PROPULSION (2) --- Armored Wheel Armored Wheel > --- UTILITY (2) ------ Subdweller Optics > --- WEAPON (2) ------- Medium Laser Light Assault Rifle > --- INVENTORY (5) ---- Ion Engine Armored Wheel Armored Wheel Subdweller Laser Light Assault Rifle Peak State ------------ > --- POWER ------------ Light Nuclear Core > --- PROPULSION ------- Armored Wheel Armored Wheel > --- UTILITY ---------- Small Storage Unit Shield Generator > --- WEAPON ----------- Light Assault Rifle Light Assault Rifle > --- INVENTORY -------- Ion Engine Light Ion Engine Armored Wheel Armored Wheel Weight Redist. System Sensor Array Medium Laser Medium Laser [Rating: 13] Favorites ----------- Power Light Nuclear Core Engine Light Ion Engine Power Core Light Nuclear Core Propulsion Aluminum Leg Treads Light Treads Leg Aluminum Leg Wheel Armored Wheel Utility Small Storage Unit Device Weight Redist. System Storage Small Storage Unit Protection Scrap Shield Weapon Light Assault Rifle Energy Gun Particle Gun Ballistic Gun Light Assault Rifle Build | -11 -10 -10 ------- Run | Yrd Mat Sub Slots Evolved . | . . . Power . | . . . Propulsion . | . . . Utility . | . . . Weapon . | . . . Parts Attached 37 | 9 24 4 Power 7 | 2 4 1 Engine 6 | 2 3 1 Core 1 | . 1 . Reactor . | . . . Propulsion 14 | 2 12 . Treads 2 | 2 . . Leg 10 | . 10 . Wheel 2 | . 2 . Hover . | . . . Flight . | . . . Utility 9 | 2 5 2 Device 6 | 1 4 1 Storage 2 | 1 1 . Processor . | . . . Hackware . | . . . Protection 1 | . . 1 Artifact . | . . . Weapon 7 | 3 3 1 Energy Gun 3 | 1 1 1 Energy Cannon . | . . . Ballistic Gun 4 | 2 2 . Ballistic Cannon . | . . . Launcher . | . . . Special Weapon . | . . . Impact Weapon . | . . . Slashing Weapon . | . . . Piercing Weapon . | . . . Special Melee Weapon . | . . . Unidentified Prototypes . | . . . Parts Lost 6 | . 4 2 Power 3 | . 2 1 Propulsion . | . . . Utility 2 | . 1 1 Weapon 1 | . 1 . Highest Loss Streak 2 | . 2 2 To Critical Strikes . | . . . Average Backups 5 | 3 6 4 Power 1 | . 1 1 Propulsion 2 | 1 2 2 Utility . | . . . Weapon 1 | . 2 1 Tool/Special . | . . . Unused Backups 3 | . . 3 Power 1 | . . 1 Propulsion 2 | . . 2 Utility . | . . . Weapon . | . . . Tool/Special . | . . . Average Slot Usage (%) 96 | . 98 85 Engine 5 | . 5 3 Core 8 | . 8 10 Treads 2 | . 2 . Leg 13 | . 16 . Wheel 11 | . 8 28 Device 11 | . 12 2 Storage 11 | . 14 1 Protection 1 | . . 10 Ballistic Gun 27 | . 27 27 Peak Build Rating 13 | 7 13 13 Average Rating 9 | 5 9 11 On Entrance 6 | . 7 13 Avg Prop Armor Cover (%) . | . . . Naked Turns . | . . . Heaviest Build 25 | 13 14 25 Greatest Support 40 | 40 40 24 Greatest Overweight (x) 1 | . . 1 Average Overweight (x) . | . . . Largest Inventory Capacity 8 | 8 8 8 Average Capacity 7 | 7 8 5 Most Carried 8 | 5 8 8 Average Carried 5 | 3 6 4 Final Capacity 8 | 8 8 5 Final Carried 8 | 4 8 5 Class Distribution -------------------- 64% | Mutant 35% | Scavenger-Mutant Dominant Class ---------------- Mutant | -10/Materials Mutant | -10/Subcaves Resources | -11 -10 -10 ----------- Run | Yrd Mat Sub Matter Collected 788 | 314 424 50 Remotely . | . . . Salvage Created 891 | 92 706 93 Parts 51 | 7 42 2 Haulers Intercepted 1 | . 1 . Recyclers Shooed 1 | . 1 . Parts Field Recycled . | . . . Retrieved Matter . | . . . Parts Self-Destructed . | . . . Prevented . | . . . Parts Restored . | . . . Kills | -11 -10 -10 ------- Run | Yrd Mat Sub Combat Hostiles Destroyed 15 | . 13 2 Guns 15 | . 13 2 Classes Destroyed 8 | 2 5 1 Worker 1 | . 1 . Tunneler 1 | 1 . . Hauler 1 | . 1 . Recycler 1 | 1 . . Operator 1 | . 1 . Watcher 1 | . 1 . Grunt 13 | . 13 . Subdweller 2 | . . 2 Best Kill Streak 3 | 1 3 1 Combat Bots Only 3 | . 3 1 Max Kills in Single Turn 1 | 1 1 1 Gunslinging . | . . . Exploded . | . . . Melee . | . . . Uniques/NPCs Destroyed . | . . . Combat | -11 -10 -10 -------- Run | Yrd Mat Sub Hostile Shots Fired 118 | . 88 30 Missed 25 | . 16 9 Hits 93 | . 72 21 Projectile 93 | . 72 21 Damage Taken 1327 | . 893 434 Core 270 | . 210 60 Absorbed by Shields . | . . . Core Remaining (%) 100 | 100 . . Volleys Fired 111 | 7 81 23 Largest 2 | 2 2 2 Hottest 85 | 40 85 70 Shots Fired 222 | 14 162 46 Gun 222 | 14 162 46 Cannon . | . . . Launcher . | . . . Special . | . . . Kinetic 213 | 14 156 43 Thermal 9 | . 6 3 Explosive . | . . . Electromagnetic . | . . . Robot Hit Streak 30 | 4 12 30 Robot Miss Streak 3 | 2 3 2 Penetration Max . | . . . Secondary Targets 2 | . 2 . Max Gunslinging Chain 1 | . 1 . Shots Hit Robots 151 | 9 101 41 Core Hits 62 | 5 48 9 Critical Kills . | . . . Critical Parts Destroyed . | . . . Critical Strikes 1 | . 1 . Burn 1 | . 1 . Melee Attacks . | . . . Impact . | . . . Slashing . | . . . Piercing . | . . . Sneak Attacks . | . . . Combat Hostiles . | . . . Follow-up Attacks . | . . . Damage Inflicted 1270 | 78 851 341 Guns 1265 | 78 846 341 Cannons . | . . . Explosions . | . . . Melee . | . . . Ramming 5 | . 5 . Kinetic 1168 | 78 786 304 Thermal 97 | . 60 37 Explosive . | . . . Electromagnetic . | . . . Impact . | . . . Slashing . | . . . Piercing . | . . . Highest Corruption . | . . . Average Corruption . | . . . Corruption Purged . | . . . Corruption Blocked . | . . . Overload Shots . | . . . Overflow Damage . | . . . Projectiles . | . . . Explosions . | . . . Melee . | . . . Knockbacks . | . . . Impact . | . . . Kinetic . | . . . Secondary . | . . . Self-Inflicted Damage 2 | . 2 . Shots . | . . . Rammed 1 | . 1 . Targets Rammed 1 | . 1 . Kicked . | . . . Crushed . | . . . Highest Temperature 240 | . 240 3 Average Temperature 36 | . 36 3 Received Heat Transfer 630 | . 510 120 Effects 3 | . 3 . Interference 3 | . 3 . Siege Activations . | . . . Martial Activations . | . . . Shielding Activations . | . . . Robots Disrupted . | . . . Combat Hostiles . | . . . Robots Corrupted . | . . . Combat Hostiles . | . . . Parts Fried . | . . . Impact Corruptions . | . . . Robots Melted . | . . . Combat Hostiles . | . . . Parts Melted 1 | . . 1 Heat Transferred 333 | . 222 111 Parts Sabotaged . | . . . Parts Stolen . | . . . Parts Stripped . | . . . Power Chain Reactions . | . . . Alert | -11 -10 -10 ------- Run | Yrd Mat Sub Maximum Alert Level . | . . . Low Security (%) 100 | 100 100 . Level 1 . | . . . Level 2 . | . . . Level 3 . | . . . Level 4 . | . . . Level 5 . | . . . High Security . | . . . Max Security . | . . . Peak Influence 105 | 5 105 . Initial . | . . . Average 36 | . 40 . Influence Increases 468 | 10 458 . Destroy 0b10 Robot/C 260 | . 260 . Destroy 0b10 Robot/NC 30 | 10 20 . Destroy Leader 84 | . 84 . Successful Hack 4 | . 4 . Lose Combat Pursuer 90 | . 90 . Influence Decreases 468 | 10 400 58 Entered New Map 29 | . . 29 Time Decay 409 | 10 370 29 Lost Part 30 | . 30 . Squads Dispatched 4 | . 4 . Investigation 3 | . 3 . Extermination . | . . . Reinforcement 1 | . 1 . Assault . | . . . Garrison . | . . . Intercept . | . . . Searches Triggered . | . . . Construction Impeded . | . . . Haulers Reinforced . | . . . Active Scanning Responses . | . . . Cargo Convoy Interrupts . | . . . Stealth | -11 -10 -10 --------- Run | Yrd Mat Sub Distress Signals . | . . . Communications Jammed . | . . . Distress Signals . | . . . Times Spotted 36 | . 32 4 Peak Tracking Total 5 | . 5 2 Tactical Retreats 4 | . 4 . Traps | -11 -10 -10 ------- Run | Yrd Mat Sub Traps Triggered 3 | . 3 . Indirectly . | . . . Trap Hack Attempts . | . . . Triggered . | . . . Disarmed . | . . . Reprogrammed . | . . . Reused . | . . . Traps Extracted . | . . . Installed . | . . . Triggered . | . . . Machines | -11 -10 -10 ---------- Run | Yrd Mat Sub Machines Disabled . | . . . Max in Single Turn . | . . . Machines Repaired . | . . . Machines Dismantled . | . . . Machines Sabotaged . | . . . Overloaded Fab Kills . | . . . Hacking | -11 -10 -10 --------- Run | Yrd Mat Sub Machines Accessed 8 | . 8 . Terminals 7 | . 7 . Fabricators . | . . . Repair Stations . | . . . Recycling Units 1 | . 1 . Scanalyzers . | . . . Garrison Access . | . . . Total Hacks 21 | . 21 . Successful 5 | . 5 . Failed 16 | . 16 . Catastrophic 3 | . 3 . Database Lockouts . | . . . Manual 12 | . 12 . Terminals 18 | . 18 . Fabricators . | . . . Repair Stations . | . . . Recycling Units 3 | . 3 . Scanalyzers . | . . . Garrison Access . | . . . Terminal Hacks 4 | . 4 . Terminal Index 1 | . 1 . Alert Level 1 | . 1 . Unreport Threat 1 | . 1 . Locate Traps 1 | . 1 . Fabricator Hacks . | . . . Repair Station Hacks . | . . . Recycling Unit Hacks 1 | . 1 . Report Inventory 1 | . 1 . Scanalyzer . | . . . Garrison Access Hacks . | . . . Unauthorized Hacks . | . . . Terminals . | . . . Fabricators . | . . . Repair Stations . | . . . Recycling Units . | . . . Scanalyzers . | . . . Garrison Access . | . . . Data Cores Recovered 1 | . 1 . Used 1 | . 1 . Hacking Detections 8 | . 8 . Full Trace Events 1 | . 1 . Feedback Events . | . . . Feedback Blocked . | . . . Robot Schematics Acquired . | . . . Robots Built . | . . . Authchips . | . . . Time . | . . . Total Robot Build Rating . | . . . Part Schematics Acquired . | . . . Parts Built . | . . . Authchips . | . . . Time . | . . . Total Part Build Rating . | . . . Part Studies Acquired . | . . . Parts Repaired . | . . . Time . | . . . Parts Recycled . | . . . Recycled Matter . | . . . Retrieved Matter . | . . . Retrieved Components . | . . . Parts Scanalyzed . | . . . Part Schematics Acquired . | . . . Parts Damaged . | . . . Bothacking | -11 -10 -10 ------------ Run | Yrd Mat Sub Used RIF Installer . | . . . Robots Hacked . | . . . Non-combat . | . . . Combat . | . . . Robot Hacks Applied . | . . . Relay Couplers Released . | . . . Fabnet Peak Effective % . | . . . Robots Rewired . | . . . Allies Hacked . | . . . Hacks Repelled . | . . . Allies | -11 -10 -10 -------- Run | Yrd Mat Sub Total Allies . | . . . Largest Group . | . . . Highest-Rated Group . | . . . Highest-Rated Ally . | . . . Total Orders . | . . . Ally Attacks . | . . . Total Damage . | . . . Kills . | . . . Allies Corrupted . | . . . Allies Melted . | . . . Intel | -11 -10 -10 ------- Run | Yrd Mat Sub Active Infowar (turns) 528 | 25 486 17 Optics 17 | . . 17 Sensors 258 | . 258 . Seismic 253 | 25 228 . Robot Analysis Total . | . . . Derelict Logs Recovered . | . . . Drone Launches . | . . . Drone Recoveries . | . . . Exploration | -11 -10 -10 ------------- Run | Yrd Mat Sub Turns Passed 1609 | 134 1228 247 Spaces Moved 889 | 63 655 171 Core 4 | 4 . . Treads 120 | 59 61 . Legs 394 | . 394 . Wheels 371 | . 200 171 Hover . | . . . Flight . | . . . Fastest Speed 50 | 50 90 90 Average Speed 114 | 153 114 102 Slowest Speed 160 | 160 160 105 Overloaded Moves . | . . . Propulsion Burnouts . | . . . Robots Hopped . | . . . Potential Cave-ins . | . . . Cave-ins Triggered . | . . . Exploration Rate (%) 33 | 4 83 14 Regions Visited 2 Branch Regions 1 Pre-discovered Areas 1 | . . 1 Known Exits Taken . | . . . Unknown Exits Taken 2 | 1 1 . Scrap Searched . | . . . Spaces Dug . | . . . Terrain Destroyed . | . . . Melee . | . . . Projectile . | . . . AOE . | . . . Terrain Rammed . | . . . Walls Destroyed . | . . . Machines Disabled . | . . . Actions | -11 -10 -10 --------- Run | Yrd Mat Sub Total 1294 | 86 1000 208 Wait 199 | . 199 . Move 887 | 62 654 171 Hop . | . . . Pick Up 25 | 6 15 4 Fast Attach 16 | 6 9 1 Attach 9 | 1 6 2 Detach 2 | . 2 . Swap 18 | 3 14 1 Drop 26 | 1 19 6 Fire 111 | 7 81 23 Melee . | . . . Ram 1 | . 1 . Kick . | . . . Crush . | . . . Escape Stasis . | . . . Rewire . | . . . Trap . | . . . Miscellaneous . | . . . Route ------- -11/Scrapyard -10/Materials (discovered 5 exits: [*Mat x2] / [*Min x2] / [*Sub]) -10/Subcaves History --------- Turn | Location | Event 21 | -11/Scrapyard | Discovered new exit (range 16) 135 | -11/Scrapyard | Entered Materials 139 | -10/Materials | Discovered new exit (range 11) 299 | -10/Materials | Discovered new exit (range 16) 309 | -10/Materials | Build established: Mutant 412 | -10/Materials | Discovered new exit (range 10) 560 | -10/Materials | Discovered new exit (range 13) 705 | -10/Materials | Core integrity fell below 50% 758 | -10/Materials | Discovered new exit (range 8) 913 | -10/Materials | Build established: Scavenger-Mutant 1120 | -10/Materials | Core integrity fell below 20% 1288 | -10/Materials | Build established: Mutant 1363 | -10/Materials | Entered Subcaves 1402 | -10/Subcaves | Learned location of Zion (-6) 1402 | -10/Subcaves | Met a Zionite searching for "candidates" 1489 | -10/Subcaves | Ambushed by swarm of Subdwellers 1530 | -10/Subcaves | Lost 3 allies 1610 | -10/Subcaves | Destroyed by D0-CN2(R) with Subdweller Machine Gun Last Messages --------------- dangerous down here, I feel that you could die at any moment. For your health and safety might I suggest a trip to Zion?" World map updated: -6/Zion. 01456_ HS-I01(O) puts together Sub. Shrapnel Launcher. 01471_ HS-I01(O) collects matter. MY-FHU(R) comes tumbling into view. 01489_ PG-MY7(h): "The Subs are coming!" 01499_ PG-MY7(h) destroyed. 01551_ Lgt. Nuclear Core destroyed. 01553_ Destroyed Scrap Shield. 01553_ Sub. Optics melted. 01553_ MY-FHU(R) destroyed. 01555_ Acquired 27 matter. 01571_ Scrap Shield destroyed. 01584_ VG-03S(R) destroyed. 01590_ Acquired Sub. Laser. 01591_ Acquired 13 matter. 01593_ Acquired Sub. Optics. Map ----- +----------------------------------------------------+ | ?????????????????????????????????????????????????? | | ?????????????????????????????????????????????????? | | ?????????????????????????????????????????????????? | | ?????????????????????????????????????????????? ?? | | ?????????????????????????????????????????????? ? | | ?????????????????????????????????????????????? ? | | ?????????????????????????????????????????????? #? | | ?????????????????????????????????? #????????# #? | | ?????????????????????????????????? ??????# ## | | ????????????????????????????????? ???## | | ?????????????????????????????????# #???# | | ????????????????????????????????## #??? | | ???????????????????????????????## ##??# | | ??????????????????????????????## #### | | ?????????????????????????????## ? | | ????????????????????????????## #? | | ????????????????????????????# #?# ## | | ???????????????????# ???????# #?## # | | ??????????????????## ???????# ### # | | ??????????????????# ##????## ### ### # | | ????????????????### #??## ######?## # | | ????????????????# #??# ### ### | | ????????????????# ??## ## ##% | | ?????????????????# ### ## | | ?????????????????# #?# | | ?????????????????# @ ### ## ## ## | | ????????????????## % ### ## #? | | ????????????????# ### #?### #? | | ????????????????# ###RR #########???## #? | | ???????????????## =|] ##????????????## #? | | ???????????????# [= ##??????????????# #? | | ???????????????# #???????????????# ##? | | ???????????????## ####???????????????###?? | | ????????????????## = #??????????????????????? | | ????????????????#" =*!"#??????????????????????? | | ????????????????## *[ !""???????????????????????? | | ????????????????# == ##???????????????????????? | | ????????????????# !##?#####??????????????????? | | ????????????????# ##?# ######??###????????? | | ????????????????## ### %# #### ##???????? | | ??##?????????????## #???????? | | ??? ????????###### % #????????? | | ???? ???????# # # # ##???????? | | ????# ???????# ### # ##### #???????? | | ????# ??###?# # ###?## ######?## ##???????? | | ????# ### #### # ###???# # #?#% #???????? | | ????# [! ## ###????## # ### #???????? | | ????# !!!### ##?##### # ## ##???????? | | ????# # # ### ## ## #????????? | | ???## ## % ##????????? | +----------------------------------------------------+ Best States ------------- Heat Dissipation 25 Coolant Potential 50 Energy Generation 14 Energy Capacity 250 Matter Stores 300 Matter Capacity 300 Sight Range 21 Robot Scan Range 14 Terrain Scan Density 10 Additional Mass Support 6 Armor Coverage 800 Evasion (%) 55 Recoil Reduction 2 Item Schematics ----------------- None Robot Schematics ------------------ None Fabricated ------------ Nothing Repaired ---------- Nothing Studied --------- None Alien Tech Used ----------------- None Achievements -------------- None Challenges ------------ None Game ------ Seed EnhancedGlidesysMultitool Manual? 0 Play Time 00:27:50 Cumulative 11.8 hours Start 2026.04.07 @ 21:24:29 End 2026.04.07 @ 21:57:07 Sessions 1 Manual Loads 0 Difficulty Rogue Special Mode None Game No. 7 Rogue 3 Adventurer 4 Explorer 0 Win Type - Total 0 Types 0/0/0/0/0/0/0/0/0/0 Lore% 4 Gallery% 10 Achievement% 10 Wizard Run 0 Options --------- Layout 1 ASCII 0 Keyboard 0 Movement Mouse Keybinds 0 Fullscreen 2 Font 24/Smallcaps Map View 50x35 Zoom Use 0% Tactical HUD 1 Map Filters NONE Filters NONE Steam 1 RUN: 42cccbd8-5db2-4394-ab0b-ab9502db2a73